fUSD/lending_fUSD_20240829
["ID","MTS","AMOUNT","RATE_DAILY","PERIOD"]
[336535307,1724917843410,-1023.82317081,0.00011,2]
[336535309,1724917843421,-1138.20354829,0.00011,2]
[336535313,1724917843452,-412.1753019,0.00011,2]
[336535316,1724917843463,-605.70812265,0.00011,2]
[336535318,1724917843473,-529.96343103,0.00011,2]
[336535320,1724917843484,-337.31421722,0.00011,2]
[336535333,1724917845987,-5500.0,0.00011,2]
[336535334,1724917845999,-2340.0,0.00011,2]
[336535335,1724917846039,-341.04,0.00011,2]
[336535336,1724917846052,-5859.8,0.00011,2]
[336535337,1724917846063,-3455.53409534,0.00011,2]
[336535338,1724917846075,-767.14366818,0.00011,2]
[336535339,1724917846086,-589.37436581,0.00011,2]
[336535340,1724917846097,-301.616,0.00011,2]
[336535341,1724917846108,-180924.925148,0.00011,2]
[336535342,1724917846120,-1276.27483316,0.00011,2]
[336535343,1724917846134,-432.89653833,0.00011,2]
[336535344,1724917846146,-1117.28317245,0.00011,2]
[336535347,1724917846164,-315.53025998,0.00011,2]
[336535349,1724917846191,-2541.3138532,0.00011,2]
[336535350,1724917846202,-823.69113354,0.00011,2]
[336535351,1724917846214,-935.12,0.00011,2]
[336535352,1724917846225,-895.78987325,0.00011,2]
[336535353,1724917846250,-3082.32537501,0.00011,2]
[336535354,1724917847332,-16344.51668327,0.00011,2]
[336535355,1724917847343,-1462.76416002,0.00011,2]
[336535356,1724917847354,-13413.68580089,0.00011,2]
[336535357,1724917847365,-1313.87865291,0.00011,2]
[336535358,1724917847376,-470.08,0.00011,2]
[336535359,1724917847387,-2515.55082892,0.00011,2]
[336535360,1724917847397,-891.94150928,0.00011,2]
[336535361,1724917847408,-1000.0,0.00011,2]
[336535362,1724917847432,-55747.21617718,0.00011,2]
[336535363,1724917847443,-285.60453231,0.00011,2]
[336535364,1724917847454,-1370.16042357,0.00011,2]
[336535365,1724917847465,-14999.88000451,0.00011,2]
[336535366,1724917847476,-17813.38405667,0.00011,2]
[336535367,1724917847487,-4643.55379647,0.00011,2]
[336535368,1724917847510,-357.37911718,0.00011,2]
[336535369,1724917847530,-157928.3802,0.00011,2]
[336535370,1724917847541,-9673.94992461,0.00011,2]
[336535371,1724917847553,-110352.61869062,0.00011,2]
[336535372,1724917847571,-335.97564,0.00011,2]
[336535373,1724917847583,-376.58731798,0.00011,2]
[336535374,1724917847606,-2064.39225517,0.00011,2]
[336535375,1724917847617,-85273.67701271,0.00011,2]
[336535376,1724917847723,-3678.56594504,0.00011,2]
[336535377,1724917847737,-442.82396974,0.00011,2]
[336535378,1724917847748,-459.5741148,0.00011,2]
[336535379,1724917875382,500.0,8.22e-05,2]
[336535380,1724917878053,500.0,0.0001096,2]
[336535381,1724917893457,900.0,8.22e-05,2]
[336535382,1724917894874,1100.0,8.22e-05,2]
[336535383,1724917895620,900.0,9.59e-05,2]
[336535384,1724917896454,1100.0,9.59e-05,2]
[336535385,1724917903632,450.0,0.00010296,2]
[336535386,1724917911107,1000.0,0.0001,10]
[336535387,1724917932040,1000.0,0.00024,120]
[336535388,1724917954731,250.0,0.00010365,2]
[336535389,1724918020381,10461.4653,0.0001088,2]
[336535390,1724918036067,377.89,8.371e-05,2]
[336535391,1724918036269,377.89,0.00010634,2]
[336535392,1724918040155,152.19,0.00010959,2]
[336535393,1724918087349,588.0889,0.000109,2]
[336535394,1724918146198,345.40862216,0.000109,2]
[336535395,1724918147019,840.0,0.00010286,2]
[336535396,1724918162766,171.87,0.00010291,2]
[336535397,1724918244870,253.36,0.0001029,2]
[336535398,1724918363272,614.63,0.00010292,2]
[336535399,1724918533919,352.64,8.374e-05,2]
[336535400,1724918534015,352.64,0.00010638,2]
[336535401,1724918536467,1050.0,0.0001,2]
[336535402,1724918583493,198.23,0.00010631,2]
[336535403,1724918599772,15308.131763,0.0001,2]
[336535404,1724918723017,328.0,0.00010292,2]
[336535405,1724918804126,197.31,0.00010284,2]
[336535407,1724918839876,150.0,9.888e-05,2]
[336535410,1724918850228,150.0,0.00010532,2]
[336535411,1724918856675,319.88,0.00010959,2]
[336535412,1724918859821,150.0,0.00010532,2]
[336535413,1724918869164,339.27521167,0.000109,2]
[336535414,1724918869744,152.8546,0.00010849,2]
[336535415,1724918870488,1710.14,0.0001049,2]
[336535416,1724918870531,3768.6199676,0.000109,2]
[336535417,1724918874194,472.7394,0.000109,2]
[336535418,1724918875477,1764.66962543,0.000109,2]
[336535419,1724918878338,500.0,0.000105,2]
[336535420,1724918879216,172.17,0.000105,2]
[336535421,1724918879720,200.0,0.00010448,2]
[336535422,1724918880128,500.0,0.000102,3]
[336535423,1724918882250,1000.0,0.000103,3]
[336535424,1724918883260,500.0,0.000105,2]
[336535425,1724918884034,500.0,0.000105,2]
[336535426,1724918885110,1500.0,0.000104,3]
[336535427,1724918885502,474.11,0.000105,2]
[336535428,1724918886572,2100.0,0.000105,3]
[336535429,1724918887303,150.0,0.00010959,2]
[336535430,1724918888631,2600.0,0.000106,3]
[336535431,1724918890771,500.0,0.000107,3]
[336535432,1724918892877,500.0,0.000108,3]
[336535433,1724918895652,500.0,0.000109,3]
[336535434,1724918898235,913.22700434,0.000109,2]
[336535435,1724918903998,151.0,0.00010448,2]
[336535436,1724918904300,151.0,0.00010448,2]
[336535437,1724918905038,196.0182,0.000109,2]
[336535438,1724918919104,180.10731426,0.000109,2]
[336535439,1724918925973,817.9634,0.000109,2]
[336535440,1724918926536,394.0589521,0.000109,2]
[336535441,1724918931001,158.87424128,0.000109,2]
[336535442,1724918931755,2685.8262158,0.000109,2]
[336535443,1724918943818,260.3448,0.000109,2]
[336535444,1724918947908,753.8947,0.0001086,2]
[336535445,1724918958441,1444.48154229,0.000109,2]
[336535446,1724918958478,188.74,0.00010266,2]
[336535447,1724918960212,445.8982,0.000109,2]
[336535448,1724918968689,230.51,0.00010266,2]
[336535449,1724918971296,1042.0,0.000109,2]
[336535450,1724918973505,183.1,0.00010266,2]
[336535451,1724918982783,530.8919,0.000109,2]
[336535452,1724918985805,250.0,0.00010261,2]
[336535453,1724919002237,150.0,0.000109,2]
[336535454,1724919003002,150.0,0.000109,2]
[336535455,1724919003071,150.0,0.000109,2]
[336535456,1724919003140,150.0,0.000109,2]
[336535457,1724919003213,153.98564217,0.000109,2]
[336535458,1724919005954,200.0,0.00010846,2]
[336535459,1724919019077,738.58,8.342e-05,2]
[336535460,1724919019275,738.58,0.00010606,2]
[336535461,1724919025142,201.12565571,0.0001086,2]
[336535462,1724919028560,300.0,0.000109,2]
[336535463,1724919031119,201.1256557,0.00010873,2]
[336535468,1724919032034,-576.02,0.0001096,2]
[336535491,1724919034206,339.4,0.00010959,2]
[336535495,1724919038143,-323.98,0.0001096,2]
[336535496,1724919038153,-1100.0,0.0001096,2]
[336535497,1724919038163,-300.0,0.00010969,2]
[336535498,1724919038173,-6553.82062405,0.0001097,10]
[336535499,1724919038184,-1024.33593195,0.0001097,10]
[336535506,1724919039980,-3884.44144592,0.0001097,10]
[336535508,1724919040036,-395.48039178,0.0001097,10]
[336535509,1724919040140,-1813.28998853,0.0001097,10]
[336535510,1724919040152,-547.52749393,0.0001097,10]
[336535511,1724919040195,-996.45,0.0001097,10]
[336535512,1724919040206,-2190.83165,0.0001097,10]
[336535513,1724919040217,-332.54659203,0.0001097,10]
[336535514,1724919040229,-2501.44133475,0.0001097,10]
[336535515,1724919040250,-730.07124766,0.0001097,10]
[336535516,1724919040307,-1247.19195163,0.0001097,10]
[336535517,1724919040322,-718.80914127,0.0001097,10]
[336535520,1724919042684,216.74185712,0.000109,2]
[336535540,1724919046913,-747.54487454,0.0001097,10]
[336535541,1724919046939,-439.875,0.0001097,10]
[336535542,1724919046961,-5411.69195109,0.0001097,10]
[336535543,1724919046970,-500.0,0.00010973,2]
[336535544,1724919046979,-150.0,0.00010986,2]
[336535545,1724919046989,-150.0,0.00010996,2]
[336535546,1724919046998,-150.0,0.00010997,2]
[336535547,1724919047008,-150.0,0.00010997,2]
[336535548,1724919047022,-150.0,0.00010997,2]
[336535549,1724919047032,-150.0,0.00010997,2]
[336535550,1724919047041,-150.0,0.00010997,2]
[336535551,1724919047053,-150.0,0.00010998,2]
[336535552,1724919047063,-150.0,0.00010998,2]
[336535553,1724919047072,-150.0,0.00010998,2]
[336535554,1724919047082,-150.0,0.00010998,2]
[336535555,1724919047091,-150.0,0.00010998,2]
[336535556,1724919047102,-510.0,0.00011,2]
[336535557,1724919047112,-3781.71831988,0.00011,2]
[336535558,1724919047124,-12233.848,0.00011,2]
[336535559,1724919047135,-3391.41270362,0.00011,2]
[336535560,1724919054987,300.0,0.0001096,2]
[336535561,1724919057216,184.8853,0.000109,2]
[336535562,1724919066155,306.88,0.00010295,2]
[336535563,1724919066237,688.2669,0.000109,2]
[336535564,1724919073299,751.5,0.00010959,2]
[336535565,1724919074994,900.0,8.22e-05,2]
[336535566,1724919075244,700.0,8.22e-05,2]
[336535567,1724919075409,153.277274,0.00010944,2]
[336535568,1724919076376,900.0,9.59e-05,2]
[336535569,1724919077135,700.0,9.59e-05,2]
[336535570,1724919077904,300.0,0.0001096,2]
[336535571,1724919084282,930.99538564,0.000109,2]
[336535572,1724919093757,1192.61774347,0.000109,2]
[336535573,1724919095091,422.0148,0.000109,2]
[336535574,1724919095717,834.2383,0.000109,2]
[336535575,1724919096508,166.3485,0.000109,2]
[336535576,1724919097193,450.0,0.0001096,2]
[336535577,1724919113514,1000.0,0.000109,2]
[336535578,1724919115624,361.89321576,0.0001096,2]
[336535579,1724919128893,151.38,0.00010284,2]
[336535580,1724919149809,200.0,0.00010905,2]
[336535581,1724919156294,1114.7433353,0.00010687,2]
[336535582,1724919157675,281.1116,0.000109,2]
[336535583,1724919166323,598.78847253,0.000109,2]
[336535584,1724919171613,1418.23495391,0.00010682,2]
[336535585,1724919174277,250.0,0.00010959,2]
[336535586,1724919174384,367.78835534,0.000109,2]
[336535587,1724919197032,1751.82794,0.0001089,2]
[336535588,1724919210960,737.6,0.00010292,2]
[336535589,1724919214440,200.0,0.00010959,2]
[336535590,1724919214812,200.0,0.00010959,2]
[336535591,1724919220828,422.69,0.0001096,2]
[336535592,1724919275698,200.0,0.00010905,2]
[336535593,1724919279770,312.34,0.0001029,2]
[336535594,1724919281704,1055.23060313,0.000109,2]
[336535595,1724919285045,688.2274,0.000109,2]
[336535596,1724919287824,200.0,0.00010292,2]
[336535597,1724919312795,200.0,0.00010292,2]
[336535598,1724919327183,1360.30492848,0.000109,2]
[336535599,1724919361868,165.42622845,0.0001086,2]
[336535600,1724919362959,1035.69,0.00010266,2]
[336535601,1724919364618,242.15,0.00010266,2]
[336535602,1724919366865,165.42622845,0.0001088,2]
[336535603,1724919371840,165.42622845,0.000109,2]
[336535604,1724919392054,1006.3092895,0.000109,2]
[336535605,1724919401822,182.99358497,0.00010846,2]
[336535606,1724919423008,343.26913166,0.000109,2]
[336535607,1724919438418,151.24,8.874e-05,2]
[336535608,1724919453100,973.52713059,0.0001082,2]
[336535609,1724919461301,150.0,0.0001074,2]
[336535610,1724919461541,150.0,0.00010918,2]
[336535611,1724919500816,150.0,0.00010906,2]
[336535612,1724919501020,150.0,0.0001076,2]
[336535613,1724919501051,150.0,0.00010941,2]
[336535614,1724919501125,150.0,0.00010853,2]
[336535615,1724919501222,150.0,0.00010733,2]
[336535616,1724919504223,150.0,0.00010959,2]
[336535617,1724919514921,250.0,0.00010169,2]
[336535618,1724919555322,154.9,0.00010959,2]
[336535619,1724919566650,677.26,8.247e-05,2]
[336535620,1724919566919,677.26,0.0001051,2]
[336535621,1724919587829,1626.82357,0.0001089,2]
[336535622,1724919606272,1000.0,0.00010945,2]
[336535623,1724919606637,1000.0,0.00010945,2]
[336535624,1724919607062,1000.0,0.00010945,2]
[336535625,1724919607416,1000.0,0.00010945,2]
[336535626,1724919608067,1000.0,0.00010945,2]
[336535627,1724919608316,1000.0,0.00010945,2]
[336535628,1724919609179,1000.0,0.00010945,2]
[336535629,1724919609296,1000.0,0.00010945,2]
[336535630,1724919609377,1000.0,0.00010945,2]
[336535631,1724919609585,1000.0,0.00010945,2]
[336535632,1724919609938,1000.0,0.00010945,2]
[336535633,1724919610396,1000.0,0.00010945,2]
[336535634,1724919610823,1000.0,0.00010945,2]
[336535635,1724919611468,1000.0,0.00010945,2]
[336535636,1724919611861,1000.0,0.00010945,2]
[336535637,1724919612212,1000.0,0.00010945,2]
[336535638,1724919612682,1000.0,0.00010945,2]
[336535639,1724919613039,1000.0,0.00010945,2]
[336535640,1724919613394,1000.0,0.00010945,2]
[336535641,1724919613966,1000.0,0.00010945,2]
[336535642,1724919614268,1000.0,0.00010945,2]
[336535643,1724919614889,1000.0,0.00010945,2]
[336535644,1724919615225,1000.0,0.00010945,2]
[336535645,1724919615586,1000.0,0.00010945,2]
[336535646,1724919615962,1000.0,0.00010945,2]
[336535647,1724919616321,1000.0,0.00010945,2]
[336535648,1724919616820,1000.0,0.00010945,2]
[336535649,1724919617190,1000.0,0.00010945,2]
[336535650,1724919617541,1000.0,0.00010945,2]
[336535651,1724919617893,1000.0,0.00010945,2]
[336535652,1724919618254,885.1132,0.00010945,2]
[336535653,1724919639786,179.63,0.00010749,2]
[336535654,1724919671928,320.38452292,0.000109,2]
[336535655,1724919693964,8151.15,0.0001085,2]
[336535656,1724919711647,409.92,0.00010203,2]
[336535657,1724919754303,1178.85357437,0.000109,2]
[336535658,1724919802205,250.0,0.00010959,2]
[336535659,1724919819584,200.0,0.00010959,2]
[336535660,1724919821248,200.0,0.00010208,2]
[336535661,1724919888049,242.16,0.00010203,2]
[336535662,1724919903347,150.34,7.463e-05,2]
[336535663,1724919903553,150.34,9.206e-05,2]
[336535664,1724919903763,150.34,0.0001095,2]
[336535665,1724919921126,320.3845228,0.000109,2]
[336535666,1724919936091,300.0,9.5e-05,2]
[336535667,1724919939416,429.42,0.00010285,2]
[336535668,1724919956268,517.84,0.00010206,2]
[336535671,1724920007368,250.0,0.00010202,2]
[336535675,1724920039058,151.24,8.163e-05,2]
[336535676,1724920039090,150.0,9.888e-05,2]
[336535678,1724920080522,2149.78488002,0.0001,2]
[336535679,1724920082901,150.0,0.00010959,2]
[336535680,1724920084285,609.53,8.28e-05,2]
[336535681,1724920084467,609.53,0.00010544,2]
[336535683,1724920117061,150.0,0.00010957,2]
[336535684,1724920117090,150.0,0.00010914,2]
[336535685,1724920124868,1274.86593516,0.000115,30]
[336535691,1724920158179,320.3845228,0.000109,2]
[336535692,1724920210019,672.06,0.00010088,2]
[336535709,1724920232168,-689.30241408,0.0001096,2]
[336535711,1724920232179,-210.69758592,0.0001096,2]
[336535713,1724920232188,-700.0,0.0001096,2]
[336535714,1724920232197,-59.4303117,0.00010986,2]
[336535716,1724920232209,-197.49945406,0.00010986,2]
[336535718,1724920232218,-150.52465436,0.00010986,2]
[336535720,1724920232228,-97.1339934,0.00010993,2]
[336535721,1724920232370,-3641.5960066,0.00010993,2]
[336535722,1724920232384,-300.0,0.00010996,2]
[336535723,1724920232394,-12565.4916526,0.00010997,2]
[336535724,1724920232404,-1538.51201109,0.00010997,2]
[336535725,1724920232416,-2266.00111561,0.00010999,2]
[336535726,1724920232426,-3709.99,0.00010999,2]
[336535727,1724920232435,-511.0,0.00011,2]
[336535728,1724920232446,-20000.0,0.00011,2]
[336535730,1724920232460,-270.98,0.00011,2]
[336535731,1724920232469,-500.0,0.00011,2]
[336535732,1724920232478,-499.99,0.00011,2]
[336535733,1724920232488,-2044851.28334643,0.00011,2]
[336535735,1724920232506,-918.87231146,0.00011,2]
[336535736,1724920232517,-432.70199353,0.00011,2]
[336535737,1724920232527,-4934.80000004,0.00011,2]
[336535738,1724920232538,-7532.88863808,0.00011,2]
[336535739,1724920233790,557.0,0.00010909,2]
[336535740,1724920237741,930.0,0.00010909,2]
[336535745,1724920238286,-14825.08063999,0.00011,2]
[336535746,1724920238445,-846.6029299,0.00011,2]
[336535747,1724920238501,-364.16166724,0.00011,2]
[336535748,1724920238513,-500.29853895,0.00011,2]
[336535753,1724920240329,-10721.9260213,0.00011,2]
[336535754,1724920240340,-252.22099728,0.00011,2]
[336535755,1724920240692,-1646.22033997,0.00011,2]
[336535756,1724920240838,-641.30813083,0.00011,2]
[336535757,1724920241316,810.0,0.00010909,2]
[336535778,1724920244884,-5099.99999996,0.00011,2]
[336535779,1724920245903,447.0,0.00010909,2]
[336535781,1724920253704,500.0,0.000102,3]
[336535782,1724920255832,1000.0,0.000103,3]
[336535783,1724920256868,700.0,8.22e-05,2]
[336535784,1724920259240,1500.0,0.000104,3]
[336535785,1724920259325,700.0,9.59e-05,2]
[336535786,1724920259415,600.0,8.22e-05,2]
[336535787,1724920260302,2000.0,0.000105,3]
[336535788,1724920260473,600.0,9.59e-05,2]
[336535789,1724920262401,2500.0,0.000106,3]
[336535790,1724920264042,978.2492,0.000109,2]
[336535791,1724920264504,500.0,0.000107,3]
[336535792,1724920266616,500.0,0.000108,3]
[336535793,1724920268116,500.0,0.000109,2]
[336535794,1724920274442,500.0,0.000109,3]
[336535795,1724920298870,6224.39950182,0.000109,2]
[336535796,1724920311156,6855.8753,0.000109,2]
[336535797,1724920343625,343.73104868,0.000109,2]
[336535798,1724920346699,7475.98,0.000109,2]
[336535799,1724920357204,3282.5461,0.000109,2]
[336535800,1724920374812,161572.1654,0.000109,2]
[336535801,1724920378529,1000.0,0.000109,2]
[336535802,1724920378602,200.14135053,0.000109,2]
[336535803,1724920378893,30000.0,9.9e-05,10]
[336535804,1724920385052,320.3845228,0.000109,2]
[336535805,1724920386683,30000.0,0.0001,7]
[336535806,1724920395353,30000.0,0.0001,8]
[336535807,1724920402816,30000.0,0.0001,7]
[336535808,1724920407306,200.0,0.00010203,2]
[336535809,1724920411220,200.0,0.00010959,2]
[336535810,1724920411827,4037.23927776,0.0001,7]
[336535811,1724920412024,42696.0,0.0001089,2]
[336535812,1724920429243,2398.02585446,0.000109,2]
[336535813,1724920444515,150.34,7.478e-05,2]
[336535814,1724920444644,150.34,9.876e-05,2]
[336535815,1724920459677,179.63,0.00010787,2]
[336535817,1724920523442,250.0,0.00010959,2]
[336535818,1724920526742,484.3948082,0.0001086,2]
[336535819,1724920539003,552.73,0.00010221,2]
[336535820,1724920539235,12446.92630205,0.000109,2]
[336535821,1724920547565,158.21,0.00010959,2]
[336535822,1724920574191,206.28,0.00010218,2]
[336535823,1724920603245,320.3845228,0.000109,2]
[336535824,1724920624542,500.0,0.00010239,2]
[336535825,1724920624597,250.0,0.00010215,2]
[336535826,1724920640258,151.35904873,0.000109,2]
[336535827,1724920651285,151.38,0.00010239,2]
[336535828,1724920654598,1355.68631,0.0001089,2]
[336535829,1724920687864,462.35,0.00010239,2]
[336535830,1724920690665,2695.4499,0.000109,2]
[336535831,1724920702481,740.9,0.00010211,2]
[336535832,1724920713107,587.63,8.321e-05,2]
[336535833,1724920713326,587.63,0.00010585,2]
[336535834,1724920808445,320.3845228,0.000109,2]
[336535835,1724920856668,-700.0,0.0001096,2]
[336535836,1724920856692,-600.0,0.0001096,2]
[336535837,1724920856714,-4700.0,0.00010978,2]
[336535838,1724920861982,150.67513244,0.0001,2]
[336535839,1724920903065,500.0,8.22e-05,2]
[336535840,1724920904831,500.0,9.59e-05,2]
[336535841,1724920907543,500.0,8.22e-05,2]
[336535842,1724920909186,500.0,9.59e-05,2]
[336535843,1724920966488,150.34,7.512e-05,2]
[336535844,1724920966641,150.34,0.00010708,2]
[336535845,1724921003778,320.3845228,0.000109,2]
[336535846,1724921017293,200.0,0.00010959,2]
[336535847,1724921042607,152.19,0.00010959,2]
[336535848,1724921050507,1129.73859,0.0001089,2]
[336535849,1724921096846,234.97,0.00010084,2]
[336535850,1724921097246,250.0,0.00010084,2]
[336535851,1724921144428,250.0,0.00010959,2]
[336535852,1724921150066,276.36,0.00010085,2]
[336535853,1724921191247,320.3845228,0.000109,2]
[336535854,1724921212664,630.12,0.00010093,2]
[336535855,1724921219108,528.86,8.219e-05,2]
[336535856,1724921219315,528.86,0.00010481,2]
[336535868,1724921366437,320.3845228,0.000109,2]
[336535925,1724921433044,-500.0,0.0001096,2]
[336535926,1724921433054,-500.0,0.0001096,2]
[336535927,1724921433067,-7058.95560395,0.00010978,2]
[336535928,1724921433078,-152.08,0.0001099,2]
[336535929,1724921433087,-300.0,0.00010992,2]
[336535930,1724921433096,-1618.97845385,0.00010992,2]
[336535931,1724921433105,-450.55022804,0.00010994,2]
[336535932,1724921433122,-554.04576987,0.00010994,2]
[336535943,1724921438401,-2680.19400209,0.00010994,2]
[336535944,1724921438411,-150.0,0.00010996,2]
[336535945,1724921438420,-24794.6483293,0.00010997,2]
[336535946,1724921438430,-8096.3462335,0.00010997,2]
[336535947,1724921438439,-5478.6840095,0.00010997,2]
[336535948,1724921438448,-9608.02963974,0.00010997,2]
[336535949,1724921438458,-152.18704206,0.00010998,2]
[336535950,1724921438467,-207.03,0.00010998,2]
[336535951,1724921438477,-218.40329671,0.00010999,2]
[336535952,1724921438486,-246.47762006,0.00010999,2]
[336535953,1724921438496,-787.24,0.00010999,2]
[336535954,1724921438505,-4847.37,0.00010999,2]
[336535955,1724921438515,-383.79,0.00010999,2]
[336535956,1724921438525,-513.0,0.00011,2]
[336535957,1724921438534,-499.99,0.00011,2]
[336535958,1724921438543,-1195.42,0.00011,2]
[336535959,1724921438553,-170590.64555847,0.00011,2]
[336535960,1724921438579,-983.29885763,0.00011,2]
[336535961,1724921438600,-268.47,0.00011,2]
[336535962,1724921438726,-1109.76612253,0.00011,2]
[336535963,1724921438737,-290.305015,0.00011,2]
[336535993,1724921451973,941.44883,0.0001089,2]
[336535994,1724921487663,500.0,8.22e-05,2]
[336535995,1724921488820,500.0,9.59e-05,2]
[336535996,1724921492735,500.0,8.22e-05,2]
[336535997,1724921498079,500.0,9.59e-05,2]
[336535998,1724921514273,4463.28878934,0.0001045,2]
[336535999,1724921524529,1983.3695,0.000109,2]
[336536000,1724921535482,320.3845228,0.000109,2]
[336536001,1724921542438,150.34,7.51e-05,2]
[336536002,1724921543726,369.0114,0.000109,2]
[336536003,1724921550011,272.23,0.00010246,2]
[336536004,1724921588321,314.91,0.00010244,2]
[336536005,1724921591005,1000.0,0.000109,2]
[336536006,1724921605009,200.0,0.00010959,2]
[336536007,1724921619184,235.0,0.00010242,2]
[336536008,1724921634868,16521.7254,0.000109,2]
[336536009,1724921648346,250.0,0.00010246,2]
[336536010,1724921669165,11504.0,0.000109,5]
[336536011,1724921695141,320.3845228,0.000109,2]
[336536012,1724921715269,495.9,0.00010251,2]
[336536013,1724921723752,335.96,0.00010251,2]
[336536014,1724921766033,76697.5853,0.000109,2]
[336536015,1724921806259,10702.11928356,0.000109,2]
[336536016,1724921806820,250.0,0.00010248,2]
[336536017,1724921826852,250.0,0.00010959,2]
[336536018,1724921838515,199.73100076,0.000109,2]
[336536019,1724921843496,784.54069,0.0001089,2]
[336536020,1724921845731,329.17652632,0.000109,2]
[336536021,1724921847040,1996.1388,0.000109,2]
[336536022,1724921855786,539.24,8.327e-05,2]
[336536023,1724921855853,539.24,0.00010591,2]
[336536024,1724921857829,1868.9617364,0.000109,2]
[336536025,1724921875213,1064.4785,0.000109,2]
[336536026,1724921893558,201.15137705,0.000109,2]
[336536027,1724921906212,3244.9008,0.000109,2]
[336536028,1724921975754,525.48082867,0.000109,2]
[336536029,1724921991103,329.17652629,0.000109,2]
[336536030,1724922034384,1000.0,0.00024,120]
[336536031,1724922037120,164.84,0.00010959,2]
[336536032,1724922047584,824.23,0.00010959,2]
[336536033,1724922062922,1313.0,0.00024,120]
[336536034,1724922076703,150.34,7.492e-05,2]
[336536035,1724922097081,150.0,0.00010798,2]
[336536036,1724922097325,150.0,0.00010761,2]
[336536037,1724922097362,150.0,0.0001091,2]
[336536038,1724922098011,165.17264471,0.00024,120]
[336536039,1724922128266,329.17652629,0.000109,2]
[336536040,1724922130516,10724.909,0.000109,2]
[336536041,1724922140268,150.0,0.00010934,2]
[336536042,1724922148670,212.02,0.00010199,2]
[336536043,1724922215986,200.0,0.00010959,2]
[336536044,1724922221680,167.98,0.00010207,2]
[336536045,1724922233451,653.78391,0.0001089,2]
[336536046,1724922236318,151.38,0.00010207,2]
[336536047,1724922245071,250.0,0.00010198,2]
[336536048,1724922253309,329.17652629,0.000109,2]
[336536049,1724922297661,603.28,0.00010199,2]
[336536050,1724922312932,250.0,0.00010959,2]
[336536051,1724922346216,330.3,0.00010959,2]
[336536052,1724922354415,250.0,0.000102,2]
[336536053,1724922368647,329.17652629,0.000109,2]
[336536054,1724922373171,485.31,8.284e-05,2]
[336536055,1724922373403,485.31,0.00010548,2]
[336536073,1724922467674,1831.4428,0.000109,2]
[336536074,1724922561433,8937.3,0.00010194,2]
[336536075,1724922573289,1246.3175,0.000109,2]
[336536076,1724922579016,2200.0,0.000102,3]
[336536077,1724922581128,4400.0,0.000103,3]